[Event "FIDE World Rapid-ch Open 2018"]
[White "Yilmaz, Mustafa"]
[Black "Carlsson, Pontus"]
[Site "St. Petersburg"]
[Round "6.75"]
[Annotator "ChessBase"]
[Result "1-0"]
[Date "2018.12.27"]
[WhiteElo "2636"]
[BlackElo "2463"]
[PlyCount "134"]
[TimeControl "900+10"]

1. d4 {[%emt 0:0:0]} e6 {[%emt 0:0:38]} 2. c4 {[%emt 0:0:0]} Nf6 {[%emt 0:0:0]} 3. Nf3 {[%emt 0:0:0]} c5 {[%emt 0:0:3]} 4. Nc3 {[%emt 0:1:34]} cxd4 {[%emt 0:0:6]} 5. Nxd4 {[%emt 0:0:2]} Bb4 {[%emt 0:0:51]} 6. g3 {[%emt 0:0:12]
} Ne4 {[%emt 0:0:29]} 7. Qd3 {[%emt 0:0:10]} Nxc3 {[%emt 0:0:0]} 8. bxc3 {[%emt 0:0:3]} Be7 {[%emt 0:0:2]} 9. Bg2 {[%emt 0:0:2]} a6 {[%emt 0:0:13]
} 10. 0-0 {[%emt 0:0:38]} d6 {[%emt 0:0:56]} 11. Rd1 {[%emt 0:0:0]} Nd7 {[%emt 0:0:6]} 12. Nb3 {[%emt 0:1:47]} Qc7 {[%emt 0:0:41]} 13. Bf4 {[%emt 0:3:20]} Ne5 {[%emt 0:1:5]} 14. Qd4 {[%emt 0:0:16]} f6 {[%emt 0:0:0]} 15. c5 {[%emt 0:1:7]} dxc5 {[%emt 0:0:3]} 16. Bxe5 {[%emt 0:0:2]} fxe5 {[%emt 0:0:12]} 17. Qe4 {[%emt 0:2:27]} 0-0 {[%emt 0:0:6]} 18. Nd2 {[%emt 0:0:8]
} Rb8 {[%emt 0:0:28]} 19. Nc4 {[%emt 0:0:27]} Bf6 {[%emt 0:0:0]} 20. Nd6 {[%emt 0:0:33]} b5 {[%emt 0:0:36]} 21. Qg4 {[%emt 0:0:36]} Rb6 {[%emt 0:0:51]} 22. Ne4 {[%emt 0:1:1]} Be7 {[%emt 0:0:9]} 23. Rd2 {[%emt 0:0:4]
} c4 {[%emt 0:0:14]} 24. Rad1 {[%emt 0:0:5]} a5 {[%emt 0:0:0]} 25. h4 {[%emt 0:0:49]} b4 {[%emt 0:0:11]} 26. Ng5 {[%emt 0:0:5]} bxc3 {[%emt 0:0:33]} 27. Rc2 {[%emt 0:0:27]} h6 {[%emt 0:3:58]} 28. Qh5 {[%emt 0:0:0]} Bc5 {[%emt 0:0:42]} 29. Ne4 {[%emt 0:0:38]} Bb7 {[%emt 0:0:14]} 30. Qg6 {[%emt 0:0:24]} Bd5 {[%emt 0:0:40]} 31. Rxc3 {[%emt 0:0:13]} Bd4 {[%emt 0:0:13]
} 32. Rf3 {[%emt 0:0:21]} Rxf3 {[%emt 0:0:3]} 33. Bxf3 {[%emt 0:0:2]
} Qf7 {[%emt 0:0:5]} 34. Qg4 {[%emt 0:0:17]} c3 {[%emt 0:0:0]} 35. Rc1 {[%emt 0:0:19]} Rb2 {[%emt 0:0:16]} 36. e3 {[%emt 0:0:23]} c2 {[%emt 0:0:0]
} 37. Kg2 {[%emt 0:0:5]} Bb6 {[%emt 0:0:17]} 38. Nc3 {[%emt 0:0:0]} Bxf3+ {[%emt 0:0:7]} 39. Qxf3 {[%emt 0:0:1]} Qxf3+ {[%emt 0:0:17]} 40. Kxf3 {[%emt 0:0:1]} Bd8 {[%emt 0:0:12]} 41. Ke2 {[%emt 0:0:6]} e4 {[%emt 0:0:5]
} 42. Kd2 {[%emt 0:0:14]} Bf6 {[%emt 0:0:14]} 43. Rxc2 {[%emt 0:0:17]
} Rb4 {[%emt 0:0:7]} 44. Ne2 {[%emt 0:0:7]} g5 {[%emt 0:0:0]} 45. hxg5 {[%emt 0:0:7]} hxg5 {[%emt 0:0:1]} 46. g4 {[%emt 0:0:15]} a4 {[%emt 0:0:4]} 47. Kc1 {[%emt 0:0:26]} a3 {[%emt 0:0:3]} 48. Kd2 {[%emt 0:0:0]} Kf7 {[%emt 0:0:2]} 49. Nc1 {[%emt 0:0:1]} Rb1 {[%emt 0:0:32]} 50. Rc4 {[%emt 0:0:5]} Bb2 {[%emt 0:0:5]} 51. Nb3 {[%emt 0:0:2]} Bf6 {[%emt 0:0:13]
} 52. Nc5 {[%emt 0:0:5]} Rf1 {[%emt 0:0:12]} 53. Nxe4 {[%emt 0:0:11]
} Bb2 {[%emt 0:0:5]} 54. Kc2 {[%emt 0:0:28]} Kg6 {[%emt 0:0:0]} 55. Rc5 {[%emt 0:0:7]} Kh6 {[%emt 0:0:22]} 56. Kb3 {[%emt 0:0:10]} Rb1 {[%emt 0:0:18]} 57. Rc6 {[%emt 0:0:6]} Bf6+ {[%emt 0:0:16]} 58. Kxa3 {[%emt 0:0:28]
} Be7+ {[%emt 0:0:1]} 59. Nc5 {[%emt 0:0:1]} Kg7 {[%emt 0:0:0]} 60. Ka4 {[%emt 0:0:2]} Rb2 {[%emt 0:0:6]} 61. Nxe6+ {[%emt 0:0:4]} Kf7 {[%emt 0:0:1]} 62. f4 {[%emt 0:0:48]} Rxa2+ {[%emt 0:0:21]} 63. Kb5 {[%emt 0:0:2]
} Rg2 {[%emt 0:0:24]} 64. Nxg5+ {[%emt 0:0:21]} Bxg5 {[%emt 0:0:0]} 65. fxg5 {[%emt 0:0:1]} Rxg4 {[%emt 0:0:1]} 66. g6+ {[%emt 0:0:14]
} Ke7 {[%emt 0:0:18]} 67. g7 {[%emt 0:0:11]} Kf7 {[%emt 0:0:22]} 1-0

[Event "FIDE World Rapid-ch Open 2018"]
[White "Sychev, Klementy"]
[Black "Steinberg, Nitzan"]
[Site "St. Petersburg"]
[Round "6.76"]
[Annotator "ChessBase"]
[Result "1-0"]
[Date "2018.12.27"]
[WhiteElo "2537"]
[BlackElo "2532"]
[PlyCount "75"]
[TimeControl "900+10"]

1. e4 {[%emt 0:0:0]} c5 {[%emt 0:0:0]} 2. Nf3 {[%emt 0:0:0]} d6 {[%emt 0:0:0]} 3. Nc3 {[%emt 0:0:0]} a6 {[%emt 0:0:11]} 4. d4 {[%emt 0:0:22]} cxd4 {[%emt 0:0:2]} 5. Nxd4 {[%emt 0:0:2]} Nf6 {[%emt 0:0:2]} 6. Bg5 {[%emt 0:0:0]} Nbd7 {[%emt 0:0:5]} 7. Bc4 {[%emt 0:0:2]} h6 {[%emt 0:0:14]} 8. Bh4 {[%emt 0:0:38]} g6 {[%emt 0:0:2]} 9. Qe2 {[%emt 0:0:10]} Bg7 {[%emt 0:0:0]} 10. 0-0-0 {[%emt 0:0:4]} 0-0 {[%emt 0:1:43]} 11. Bb3 {[%emt 0:0:25]
} Qc7 {[%emt 0:1:29]} 12. Kb1 {[%emt 0:0:57]} e5 {[%emt 0:1:41]} 13. Nf3 {[%emt 0:0:4]
} Nb6 {[%emt 0:0:49]} 14. Bxf6 {[%emt 0:1:35]} Bxf6 {[%emt 0:0:0]} 15. Qd2 {[%emt 0:0:2]} Kg7 {[%emt 0:2:48]} 16. Qxd6 {[%emt 0:0:3]} Qc6 {[%emt 0:0:12]} 17. h3 {[%emt 0:4:52]} Re8 {[%emt 0:0:22]} 18. Qxc6 {[%emt 0:0:22]
} bxc6 {[%emt 0:0:1]} 19. Na4 {[%emt 0:0:1]} Rb8 {[%emt 0:0:0]} 20. Rd6 {[%emt 0:0:39]} Re7 {[%emt 0:2:32]} 21. Rxc6 {[%emt 0:1:31]} Nxa4 {[%emt 0:0:1]} 22. Bxa4 {[%emt 0:0:1]} Reb7 {[%emt 0:0:1]} 23. Bb3 {[%emt 0:1:43]
} a5 {[%emt 0:0:0]} 24. a4 {[%emt 0:0:42]} Bd7 {[%emt 0:1:38]
} 25. Rc5 {[%emt 0:0:36]} Rb4 {[%emt 0:0:7]} 26. Rxa5 {[%emt 0:1:0]} Rxe4 {[%emt 0:0:2]} 27. Ra7 {[%emt 0:0:8]} Be8 {[%emt 0:0:21]} 28. Re1 {[%emt 0:1:25]
} Rxe1+ {[%emt 0:0:2]} 29. Nxe1 {[%emt 0:0:1]} e4 {[%emt 0:0:0]} 30. a5 {[%emt 0:1:2]} Bd4 {[%emt 0:0:2]} 31. Re7 {[%emt 0:0:1]} Bxf2 {[%emt 0:1:25]} 32. Rxe4 {[%emt 0:0:2]} Ra8 {[%emt 0:1:1]} 33. Nd3 {[%emt 0:0:9]
} Bg3 {[%emt 0:0:13]} 34. Ba4 {[%emt 0:0:8]} Bxa4 {[%emt 0:0:0]} 35. Rxa4 {[%emt 0:0:2]} f5 {[%emt 0:0:9]} 36. b4 {[%emt 0:0:6]} g5 {[%emt 0:0:9]
} 37. b5 {[%emt 0:0:3]} f4 {[%emt 0:0:1]} 38. b6 {[%emt 0:0:0]} 1-0

[Event "FIDE World Rapid-ch Open 2018"]
[White "Golubov, Saveliy"]
[Black "Pogosyan, Stefan"]
[Site "St. Petersburg"]
[Round "6.77"]
[Annotator "ChessBase"]
[Result "1-0"]
[Date "2018.12.27"]
[WhiteElo "2482"]
[BlackElo "2365"]
[PlyCount "49"]
[TimeControl "900+10"]

1. d4 {[%emt 0:0:0]} Nf6 2. Nc3 {[%emt 0:0:0]} d5 {[%emt 0:0:3]} 3. Bf4 {[%emt 0:0:23]
} Bf5 {[%emt 0:0:51]} 4. f3 {[%emt 0:0:8]} e6 {[%emt 0:0:41]} 5. g4 {[%emt 0:0:23]} Bg6 {[%emt 0:0:17]} 6. h4 {[%emt 0:0:1]} h6 {[%emt 0:0:0]} 7. e3 {[%emt 0:1:2]} a6 {[%emt 0:1:5]} 8. Bd3 {[%emt 0:6:49]} Bxd3 {[%emt 0:0:11]} 9. cxd3 {[%emt 0:0:15]} Bd6 {[%emt 0:2:27]} 10. Nge2 {[%emt 0:0:5]
} Nc6 {[%emt 0:1:10]} 11. Kf2 {[%emt 0:0:51]} Qd7 {[%emt 0:0:0]} 12. Rc1 {[%emt 0:1:43]} 0-0-0 {[%emt 0:2:34]} 13. Na4 {[%emt 0:0:9]} Kb8 {[%emt 0:0:6]} 14. Nc5 {[%emt 0:0:6]} Bxc5 {[%emt 0:0:12]} 15. Rxc5 {[%emt 0:0:3]
} Rhe8 {[%emt 0:0:41]} 16. Qb3 {[%emt 0:1:1]} e5 {[%emt 0:0:0]} 17. dxe5 {[%emt 0:0:13]} Nxe5 {[%emt 0:0:25]} 18. Rhc1 {[%emt 0:0:8]} Rc8 {[%emt 0:0:53]} 19. Nd4 {[%emt 0:2:14]} Ka8 {[%emt 0:0:19]} 20. Qa3 {[%emt 0:2:19]
} c6 {[%emt 0:0:15]} 21. Bxe5 {[%emt 0:0:25]} Rxe5 {[%emt 0:0:0]} 22. Nxc6 {[%emt 0:0:6]} bxc6 {[%emt 0:0:10]} 23. Qxa6+ {[%emt 0:0:2]} Kb8 {[%emt 0:0:17]} 24. R1c3 {[%emt 0:0:8]} Qd6 {[%emt 0:0:13]} 25. Qb6+ {[%emt 0:0:4]
} 1-0

[Event "FIDE World Rapid-ch Open 2018"]
[White "Shubin, Kirill"]
[Black "Potapov, Pavel"]
[Site "St. Petersburg"]
[Round "6.78"]
[Annotator "ChessBase"]
[Result "1/2-1/2"]
[Date "2018.12.27"]
[WhiteElo "2334"]
[BlackElo "2516"]
[PlyCount "96"]
[TimeControl "900+10"]

1. e4 {[%emt 0:0:0]} c5 {[%emt 0:0:0]} 2. Nf3 {[%emt 0:0:0]} Nc6 {[%emt 0:0:0]
} 3. Bb5 {[%emt 0:0:0]} g6 {[%emt 0:0:0]} 4. 0-0 {[%emt 0:0:0]} Bg7 {[%emt 0:0:0]} 5. Re1 {[%emt 0:0:3]} Nf6 {[%emt 0:0:11]} 6. Bxc6 {[%emt 0:0:17]} dxc6 {[%emt 0:0:7]} 7. d3 0-0 8. h3 {[%emt 0:0:26]} b6 {[%emt 0:0:17]
} 9. Nbd2 {[%emt 0:0:29]} Re8 {[%emt 0:0:39]} 10. a4 {[%emt 0:0:0]} a5 {[%emt 0:0:22]} 11. Nc4 {[%emt 0:2:39]} Nd7 {[%emt 0:0:49]} 12. Bd2 {[%emt 0:1:59]} Qc7 {[%emt 0:0:12]} 13. Qc1 {[%emt 0:1:14]} e5 {[%emt 0:0:0]} 14. c3 {[%emt 0:1:39]} b5 {[%emt 0:3:47]} 15. Ne3 {[%emt 0:0:52]} Nb6 {[%emt 0:0:4]} 16. axb5 {[%emt 0:2:21]} cxb5 {[%emt 0:0:2]} 17. c4 {[%emt 0:0:1]
} b4 {[%emt 0:0:35]} 18. b3 {[%emt 0:0:10]} Bd7 {[%emt 0:0:55]
} 19. Nd5 {[%emt 0:0:22]} Qd6 {[%emt 0:0:13]} 20. d4 {[%emt 0:1:26]} exd4 {[%emt 0:2:41]
} 21. Bf4 {[%emt 0:0:1]} Qc6 {[%emt 0:0:15]} 22. Nc7 {[%emt 0:0:0]} a4 {[%emt 0:2:56]} 23. Nxa8 {[%emt 0:0:26]} Rxa8 {[%emt 0:0:5]} 24. Ne5 {[%emt 0:1:44]} Qe6 {[%emt 0:0:24]} 25. Nd3 {[%emt 0:0:45]} Rc8 {[%emt 0:0:23]
} 26. bxa4 {[%emt 0:0:26]} Nxc4 {[%emt 0:0:8]} 27. Bh6 {[%emt 0:0:49]
} Bxh6 {[%emt 0:1:43]} 28. Qxh6 {[%emt 0:0:2]} b3 {[%emt 0:0:0]} 29. Nf4 {[%emt 0:0:22]} Qe5 {[%emt 0:0:24]} 30. Rac1 {[%emt 0:0:7]} Na3 {[%emt 0:0:29]} 31. Nd3 {[%emt 0:0:8]} Qe7 {[%emt 0:0:5]} 32. Qd2 {[%emt 0:0:20]
} c4 {[%emt 0:0:28]} 33. Nb4 {[%emt 0:0:0]} Qe5 {[%emt 0:0:0]} 34. Qb2 {[%emt 0:0:11]} Nc2 {[%emt 0:0:10]} 35. Nxc2 {[%emt 0:0:3]} bxc2 {[%emt 0:0:2]} 36. Qxc2 {[%emt 0:0:1]} d3 {[%emt 0:0:13]} 37. Qd2 {[%emt 0:0:2]
} Bxa4 {[%emt 0:0:16]} 38. Rc3 {[%emt 0:0:3]} Qd4 {[%emt 0:0:0]} 39. Rec1 {[%emt 0:0:8]} Bd7 {[%emt 0:0:35]} 40. Re1 {[%emt 0:0:47]} Re8 {[%emt 0:0:5]} 41. e5 {[%emt 0:0:12]} Be6 {[%emt 0:0:8]} 42. Kh2 {[%emt 0:0:8]
} Rb8 {[%emt 0:0:1]} 43. f3 {[%emt 0:0:6]} Rb5 {[%emt 0:0:0]} 44. Re4 {[%emt 0:0:9]} Qc5 {[%emt 0:0:15]} 45. Qc1 {[%emt 0:0:17]} Qf2 {[%emt 0:0:17]} 46. Qg1 {[%emt 0:0:13]} Qxg1+ {[%emt 0:0:6]} 47. Kxg1 {[%emt 0:0:2]
} Rb1+ {[%emt 0:0:0]} 48. Kf2 {[%emt 0:0:2]} d2 {[%emt 0:0:0]} 1/2-1/2

[Event "FIDE World Rapid-ch Open 2018"]
[White "Lomasov, Semyon"]
[Black "Popov, Valerij"]
[Site "St. Petersburg"]
[Round "6.79"]
[Annotator "ChessBase"]
[Result "0-1"]
[Date "2018.12.27"]
[WhiteElo "2553"]
[BlackElo "2532"]
[PlyCount "126"]
[TimeControl "900+10"]

1. e4 e6 2. d4 d5 3. Nd2 h6 4. Bd3 c5 5. Ngf3 Nf6 6. c3 cxd4 7. cxd4 dxe4 8. Nxe4 Bb4+ 9. Bd2 Bxd2+ 10. Qxd2 Nc6 11. 0-0 0-0 12. Rac1 Nd5 13. Rfe1 Qb6 14. Bb1 Rd8 15. Nc5 Nf6 16. a3 Bd7 17. Re3 Rab8 18. Rb3 Qc7 19. Qe3 Be8 20. h3 Qe7 21. Rd3 Rbc8 22. Rdd1 Rd5 23. Ba2 Rd6 24. b4 a6 25. Ne4 Nxe4 26. Qxe4 Rcd8 27. Bb1 f5 28. Qf4 Qf6 29. Ba2 Kh7 30. Re1 Bf7 31. Bb1 Kg8 32. Ba2 Kh7 33. Qe3 Nxd4 34. Nxd4 Rxd4 35. Bxe6 Re8 36. Bxf5+ g6 37. Bxg6+ Kxg6 38. Qg3+ Qg5 39. Qh2 Re2 40. Rf1 Rdd2 41. h4 Qe5 42. Qh3 Be6 43. Qf3 Qf5 44. Qg3+ Qg4 45. Qb8 Bd5 46. h5+ Kxh5 47. Qh2+ Qh4 48. Qxh4+ Kxh4 49. Rc3 h5 50. Rg3 b5 51. Rg7 Re5 52. Rc1 Rg5 53. g3+ Kg4 54. Re7 Rf5 55. Rg7+ Kh3 56. Rh7 Bf3 57. Re1 Re5 58. Rf1 Ra2 59. Rf7 Bg2 60. Rf4 Re4 61. Rc1 Rxf4 62. gxf4 Be4 63. Re1 Bf5 0-1

[Event "FIDE World Rapid-ch Open 2018"]
[White "Vorotnikov, Vladislav V"]
[Black "Zhigalko, Andrey"]
[Site "St. Petersburg"]
[Round "6.80"]
[Annotator "ChessBase"]
[Result "1-0"]
[Date "2018.12.27"]
[WhiteElo "2417"]
[BlackElo "2545"]
[PlyCount "118"]
[TimeControl "900+10"]

1. d4 {[%emt 0:0:0]} Nf6 {[%emt 0:0:0]} 2. Nf3 {[%emt 0:0:0]} d5 {[%emt 0:0:0]
} 3. c3 {[%emt 0:0:7]} c5 {[%emt 0:0:5]} 4. e3 {[%emt 0:0:0]} Qc7 {[%emt 0:0:6]} 5. Nbd2 {[%emt 0:0:35]} Nc6 {[%emt 0:0:21]} 6. a3 {[%emt 0:1:52]
} e5 {[%emt 0:4:10]} 7. dxe5 {[%emt 0:2:29]} Nxe5 {[%emt 0:0:0]} 8. Nxe5 {[%emt 0:0:16]} Qxe5 {[%emt 0:0:2]} 9. Bb5+ {[%emt 0:0:14]} Bd7 {[%emt 0:0:4]} 10. Bxd7+ {[%emt 0:0:18]} Nxd7 {[%emt 0:0:17]} 11. c4 {[%emt 0:0:17]
} dxc4 {[%emt 0:2:10]} 12. Qf3 {[%emt 0:3:28]} 0-0-0 {[%emt 0:0:0]} 13. Qxf7 {[%emt 0:0:55]} b5 {[%emt 0:1:34]} 14. a4 {[%emt 0:1:38]} c3 {[%emt 0:0:54]} 15. bxc3 {[%emt 0:0:3]} Qxc3 {[%emt 0:0:2]} 16. Rb1 {[%emt 0:0:5]
} Ne5 {[%emt 0:2:6]} 17. Qe6+ Kc7 {[%emt 0:0:24]} 18. 0-0 {[%emt 0:1:14]
} Rd6 {[%emt 0:0:19]} 19. Qe8 {[%emt 0:0:20]} Rd8 {[%emt 0:0:0]} 20. Qxb5 {[%emt 0:0:10]} Qd3 {[%emt 0:0:10]} 21. Qb7+ {[%emt 0:1:50]} Kd6 {[%emt 0:0:1]} 22. Ne4+ {[%emt 0:0:22]} Ke6 {[%emt 0:0:2]} 23. Ng5+ {[%emt 0:1:8]
} Kf6 {[%emt 0:0:2]} 24. Bb2 {[%emt 0:0:29]} Kxg5 {[%emt 0:0:0]} 25. Bxe5 {[%emt 0:0:3]} h5 {[%emt 0:0:25]} 26. h4+ {[%emt 0:0:23]} Kg6 {[%emt 0:0:9]} 27. Qxa7 {[%emt 0:0:20]} Rd7 {[%emt 0:0:13]} 28. Qb6+ {[%emt 0:0:12]
} Kh7 {[%emt 0:0:3]} 29. a5 {[%emt 0:0:12]} Be7 {[%emt 0:0:0]} 30. a6 {[%emt 0:0:7]} Ra8 {[%emt 0:0:11]} 31. Ra1 {[%emt 0:0:6]} Rda7 {[%emt 0:0:12]} 32. Qe6 Qg6 {[%emt 0:0:12]} 33. Qc4 {[%emt 0:0:40]} Rxa6 {[%emt 0:0:14]
} 34. Rxa6 {[%emt 0:0:2]} Rxa6 {[%emt 0:0:5]} 35. Rd1 {[%emt 0:0:7]
} Qg4 {[%emt 0:0:16]} 36. Qxg4 {[%emt 0:0:5]} hxg4 {[%emt 0:0:0]} 37. g3 {[%emt 0:0:6]} c4 {[%emt 0:0:21]} 38. Rd7 {[%emt 0:0:8]} Re6 {[%emt 0:0:7]} 39. Bd4 {[%emt 0:0:4]} Kg6 {[%emt 0:0:14]} 40. Rc7 {[%emt 0:0:3]
} Kf5 {[%emt 0:0:9]} 41. Rxc4 {[%emt 0:0:3]} g6 {[%emt 0:0:0]} 42. Ra4 {[%emt 0:0:15]} Rc6 {[%emt 0:0:15]} 43. Kg2 {[%emt 0:0:5]} Ke6 {[%emt 0:0:10]} 44. Bg7 {[%emt 0:0:10]} Kf7 {[%emt 0:0:9]} 45. Bh6 {[%emt 0:0:6]
} Rc2 {[%emt 0:0:11]} 46. Rxg4 {[%emt 0:0:6]} Bd6 {[%emt 0:0:0]} 47. e4 {[%emt 0:0:13]} Bc5 {[%emt 0:0:7]} 48. Rf4+ {[%emt 0:0:3]} Ke6 {[%emt 0:0:3]} 49. Bg5 {[%emt 0:0:10]} Ke5 {[%emt 0:0:18]} 50. Bf6+ {[%emt 0:0:16]
} Ke6 {[%emt 0:0:2]} 51. e5 {[%emt 0:0:9]} Rd2 {[%emt 0:0:0]} 52. g4 {[%emt 0:0:5]} Be3 {[%emt 0:0:20]} 53. Rf3 {[%emt 0:0:3]} Bd4 {[%emt 0:0:3]} 54. Kg3 {[%emt 0:0:14]} Re2 {[%emt 0:0:17]} 55. h5 {[%emt 0:0:0]} gxh5 {[%emt 0:0:4]} 56. gxh5 {[%emt 0:0:3]} Re1 {[%emt 0:0:20]} 57. Kg2 {[%emt 0:0:13]} Bxe5 {[%emt 0:0:8]} 58. Bxe5 {[%emt 0:0:7]} Rxe5 {[%emt 0:0:3]
} 59. Re3 {[%emt 0:0:4]} Kd5 1-0

[Event "FIDE World Rapid-ch Open 2018"]
[White "Anisimov, Pavel"]
[Black "Gurvich, Vitaly"]
[Site "St. Petersburg"]
[Round "6.81"]
[Annotator "ChessBase"]
[Result "1-0"]
[Date "2018.12.27"]
[WhiteElo "2533"]
[BlackElo "2270"]
[PlyCount "67"]
[TimeControl "900+10"]

1. Nf3 {[%emt 0:0:0]} Nf6 {[%emt 0:0:0]} 2. d4 {[%emt 0:0:10]} e6 {[%emt 0:0:10]
} 3. Bf4 {[%emt 0:0:10]} c5 {[%emt 0:0:54]} 4. e3 {[%emt 0:0:0]} b6 {[%emt 0:0:10]} 5. h3 {[%emt 0:0:23]} Bb7 {[%emt 0:0:10]} 6. c3 {[%emt 0:0:10]
} Be7 {[%emt 0:0:10]} 7. Bd3 {[%emt 0:0:36]} 0-0 {[%emt 0:0:0]} 8. Nbd2 {[%emt 0:0:15]} Nc6 {[%emt 0:0:34]} 9. Qe2 {[%emt 0:0:12]} d5 {[%emt 0:0:44]
} 10. 0-0 {[%emt 0:1:2]} Bd6 {[%emt 0:0:27]} 11. Bxd6 {[%emt 0:3:17]
} Qxd6 {[%emt 0:0:10]} 12. dxc5 {[%emt 0:0:10]} Qxc5 {[%emt 0:0:0]} 13. e4 {[%emt 0:0:49]} dxe4 {[%emt 0:0:49]} 14. Nxe4 {[%emt 0:0:10]} Nxe4 {[%emt 0:0:10]} 15. Bxe4 {[%emt 0:0:27]} a5 {[%emt 0:2:31]} 16. Rfd1 {[%emt 0:0:24]
} Rad8 {[%emt 0:2:30]} 17. h4 {[%emt 0:1:12]} g6 {[%emt 0:0:0]} 18. a3 {[%emt 0:0:42]} Rxd1+ {[%emt 0:2:35]} 19. Rxd1 {[%emt 0:0:10]} Rd8 {[%emt 0:0:10]} 20. Rd3 {[%emt 0:1:17]} Qe7 {[%emt 0:1:41]} 21. h5 {[%emt 0:1:35]
} gxh5 {[%emt 0:0:25]} 22. Bxc6 {[%emt 0:1:5]} Bxc6 {[%emt 0:0:0]} 23. Nd4 {[%emt 0:0:10]} Bd5 {[%emt 0:0:20]} 24. Qxh5 {[%emt 0:1:26]} f6 {[%emt 0:0:20]} 25. c4 {[%emt 0:1:20]} Be4 {[%emt 0:0:19]} 26. Qg4+ {[%emt 0:0:10]
} Bg6 {[%emt 0:0:10]} 27. Nc6 {[%emt 0:0:10]} Rxd3 {[%emt 0:0:0]} 28. Nxe7+ {[%emt 0:0:10]} Kf7 {[%emt 0:0:10]} 29. Nxg6 {[%emt 0:0:10]} hxg6 {[%emt 0:0:10]} 30. Qe4 {[%emt 0:0:10]} Rd1+ {[%emt 0:0:10]} 31. Kh2 {[%emt 0:0:10]
} Rd6 {[%emt 0:0:10]} 32. Qb7+ Ke8 {[%emt 0:0:10]} 33. Qc8+ {[%emt 0:0:20]
} Ke7 {[%emt 0:0:10]} 34. Qc7+ {[%emt 0:0:10]} 1-0

[Event "FIDE World Rapid-ch Open 2018"]
[White "Sokolin, Leonid"]
[Black "Nihal Sarin"]
[Site "St. Petersburg"]
[Round "6.82"]
[Annotator "ChessBase"]
[Result "0-1"]
[Date "2018.12.27"]
[WhiteElo "2508"]
[BlackElo "2576"]
[PlyCount "108"]
[TimeControl "900+10"]

1. c4 {[%emt 0:0:0]} c6 {[%emt 0:0:0]} 2. d4 {[%emt 0:0:0]} d5 {[%emt 0:0:0]} 3. Nc3 {[%emt 0:0:0]} Nf6 {[%emt 0:0:3]} 4. cxd5 {[%emt 0:0:0]} cxd5 {[%emt 0:0:4]} 5. Bf4 {[%emt 0:0:0]} Nc6 {[%emt 0:0:15]} 6. e3 {[%emt 0:0:0]
} Bf5 {[%emt 0:0:15]} 7. Bb5 {[%emt 0:0:11]} Rc8 {[%emt 0:0:0]} 8. Nf3 {[%emt 0:0:9]} e6 {[%emt 0:0:38]} 9. Ne5 {[%emt 0:0:17]} Bd6 {[%emt 0:0:12]
} 10. Qa4 {[%emt 0:0:30]} Bxe5 {[%emt 0:0:40]} 11. Bxe5 {[%emt 0:0:21]
} a6 {[%emt 0:0:5]} 12. Bxc6+ {[%emt 0:1:10]} Rxc6 {[%emt 0:0:0]} 13. 0-0 {[%emt 0:0:2]} 0-0 {[%emt 0:0:7]} 14. Qb3 {[%emt 0:1:53]} b6 {[%emt 0:3:42]} 15. Rac1 {[%emt 0:1:42]} Nd7 {[%emt 0:0:39]} 16. Bg3 {[%emt 0:0:10]
} Qa8 {[%emt 0:0:18]} 17. f3 {[%emt 0:0:41]} Rfc8 {[%emt 0:0:0]} 18. Rce1 {[%emt 0:2:8]} b5 {[%emt 0:1:3]} 19. e4 {[%emt 0:0:16]} dxe4 {[%emt 0:0:5]} 20. fxe4 {[%emt 0:0:1]} Rxc3 {[%emt 0:0:6]} 21. bxc3 {[%emt 0:0:9]
} Bxe4 {[%emt 0:0:2]} 22. Rf2 {[%emt 0:0:41]} Nb6 {[%emt 0:0:0]} 23. Bd6 {[%emt 0:2:16]} Qc6 {[%emt 0:0:52]} 24. Bb4 {[%emt 0:0:7]} f5 {[%emt 0:2:5]} 25. Qa3 {[%emt 0:1:5]} a5 {[%emt 0:0:38]} 26. Bc5 {[%emt 0:0:0]} Na4 {[%emt 0:0:1]} 27. h3 {[%emt 0:0:30]} g6 {[%emt 0:2:17]} 28. Qb3 {[%emt 0:3:26]} Bd5 {[%emt 0:0:17]} 29. Qd1 {[%emt 0:0:28]} Nxc5 {[%emt 0:0:47]
} 30. dxc5 {[%emt 0:0:1]} Qxc5 31. Ree2 Rc7 {[%emt 0:0:23]} 32. Rb2 {[%emt 0:0:6]} Qxc3 {[%emt 0:0:24]} 33. Rxb5 {[%emt 0:0:5]} Qe3 {[%emt 0:0:3]
} 34. Qe2 {[%emt 0:0:7]} Qg3 {[%emt 0:0:30]} 35. Qb2 {[%emt 0:0:0]} a4 {[%emt 0:0:6]} 36. Rb8+ {[%emt 0:0:3]} Kf7 {[%emt 0:0:1]} 37. Rh8 {[%emt 0:0:1]} Rc3 {[%emt 0:0:9]} 38. Rxh7+ {[%emt 0:0:3]} Kf6 {[%emt 0:0:2]
} 39. Qd2 {[%emt 0:0:18]} Qe3 {[%emt 0:0:8]} 40. Qxe3 {[%emt 0:0:4]
} Rxe3 {[%emt 0:0:1]} 41. Ra7 {[%emt 0:0:1]} a3 {[%emt 0:0:0]} 42. Rd2 {[%emt 0:0:5]} g5 {[%emt 0:0:8]} 43. Kf2 {[%emt 0:0:1]} Rc3 {[%emt 0:0:4]} 44. Ra6 {[%emt 0:0:10]} Ke5 {[%emt 0:0:5]} 45. Ra4 {[%emt 0:0:17]
} f4 {[%emt 0:0:8]} 46. Rad4 Bxa2 {[%emt 0:0:36]} 47. R4d3 {[%emt 0:0:0]
} Rb3 {[%emt 0:0:1]} 48. Rxb3 {[%emt 0:0:0]} Bxb3 {[%emt 0:0:0]} 49. Rd7 {[%emt 0:0:0]} a2 {[%emt 0:0:0]} 50. Ra7 Kd4 {[%emt 0:0:0]} 51. Kf3 {[%emt 0:0:0]} e5 {[%emt 0:0:9]} 52. Kg4 {[%emt 0:0:1]} e4 {[%emt 0:0:3]
} 53. h4 {[%emt 0:0:3]} e3 {[%emt 0:0:12]} 54. Kf3 {[%emt 0:0:0]} Bd1# {[%emt 0:0:3]} 0-1